[Event "Early-Titled-Tuesday-Blitz-March-12-2024"]
[Site "Chess.com"]
[Date "2024.03.12"]
[Round "2"]
[White "DIMONBANAN"]
[Black "Roedor"]
[Result "1-0"]
[WhiteElo "2535"]
[BlackElo "2274"]
[TimeControl "180+1"]
[EndTime "8:17:49 PDT"]
[Termination "DIMONBANAN won on time"]

1. e4 {[%clk 0:03:00.9]} 1... e5 {[%clk 0:02:54.3]} 2. Nf3 {[%clk 0:03:00.9]}
2... Nc6 {[%clk 0:02:53.9]} 3. d4 {[%clk 0:03:01.6]} 3... exd4 {[%clk
0:02:53.6]} 4. Nxd4 {[%clk 0:03:02.5]} 4... Nf6 {[%clk 0:02:53.7]} 5. Nc3 {[%clk
0:03:02.6]} 5... Bb4 {[%clk 0:02:53.1]} 6. Nxc6 {[%clk 0:03:02.9]} 6... bxc6
{[%clk 0:02:54]} 7. Bd3 {[%clk 0:03:03.5]} 7... d6 {[%clk 0:02:53.7]} 8. O-O
{[%clk 0:03:02.3]} 8... Bc5 {[%clk 0:02:54]} 9. Bg5 {[%clk 0:02:54.7]} 9... h6
{[%clk 0:02:53.6]} 10. Bh4 {[%clk 0:02:55.3]} 10... g5 {[%clk 0:02:53.8]} 11.
Bg3 {[%clk 0:02:55.8]} 11... h5 {[%clk 0:02:53.8]} 12. e5 {[%clk 0:02:28.7]}
12... Ng4 {[%clk 0:02:52.1]} 13. exd6 {[%clk 0:01:54.3]} 13... cxd6 {[%clk
0:02:53]} 14. Be2 {[%clk 0:01:26.5]} 14... h4 {[%clk 0:02:22.8]} 15. Bxg4 {[%clk
0:01:26.3]} 15... hxg3 {[%clk 0:02:23]} 16. hxg3 {[%clk 0:01:27]} 16... Qf6
{[%clk 0:02:22.1]} 17. Bxc8 {[%clk 0:01:22.9]} 17... Rxc8 {[%clk 0:02:05.9]} 18.
Qg4 {[%clk 0:01:22.2]} 18... Kd8 {[%clk 0:01:56.3]} 19. Ne4 {[%clk 0:01:16.7]}
19... Qh6 {[%clk 0:01:53.8]} 20. Qh3 {[%clk 0:01:16.2]} 20... Qxh3 {[%clk
0:01:17.2]} 21. gxh3 {[%clk 0:01:17.1]} 21... Rxh3 {[%clk 0:01:16.5]} 22. Kg2
{[%clk 0:01:17.4]} 22... Rh7 {[%clk 0:01:09.7]} 23. Nxg5 {[%clk 0:01:14.8]}
23... Rg7 {[%clk 0:01:08.5]} 24. Ne4 {[%clk 0:01:15.5]} 24... Kc7 {[%clk
0:01:05]} 25. Nxc5 {[%clk 0:01:11.8]} 25... dxc5 {[%clk 0:01:05.9]} 26. Rad1
{[%clk 0:01:12.1]} 26... Rb8 {[%clk 0:01:04.4]} 27. b3 {[%clk 0:01:11.7]} 27...
c4 {[%clk 0:01:04.9]} 28. Rfe1 {[%clk 0:01:10.4]} 28... cxb3 {[%clk 0:01:03.8]}
29. axb3 {[%clk 0:01:08]} 29... f5 {[%clk 0:00:54.2]} 30. Rd4 {[%clk 0:01:00.2]}
30... Rf8 {[%clk 0:00:27.3]} 31. Kf3 {[%clk 0:00:57.4]} 31... Rh7 {[%clk
0:00:18]} 32. Re6 {[%clk 0:00:57.2]} 32... Rd7 {[%clk 0:00:08.4]} 33. Ra4 {[%clk
0:00:43.1]} 33... Kb6 {[%clk 0:00:06.4]} 34. Rb4+ {[%clk 0:00:43.7]} 34... Kc5
{[%clk 0:00:06.2]} 35. Rc4+ {[%clk 0:00:44.1]} 35... Kb5 {[%clk 0:00:06.7]} 36.
Rexc6 {[%clk 0:00:43.5]} 36... Rd2 {[%clk 0:00:05.8]} 37. Rc7 {[%clk 0:00:39.8]}
37... a5 {[%clk 0:00:05.5]} 38. R4c5+ {[%clk 0:00:33.1]} 38... Kb4 {[%clk
0:00:04]} 39. Rc4+ {[%clk 0:00:28.5]} 39... Kb5 {[%clk 0:00:03.9]} 40. R7c5+
{[%clk 0:00:29.2]} 40... Kb6 {[%clk 0:00:04.3]} 41. Re5 {[%clk 0:00:29]} 41...
f4 {[%clk 0:00:01.9]} 42. gxf4 {[%clk 0:00:27.3]} 42... Rfd8 {[%clk 0:00:01.8]}
43. f5 {[%clk 0:00:24.2]} 43... Rh8 {[%clk 0:00:01.9]} 44. f6 {[%clk 0:00:24.1]}
44... Rh6 {[%clk 0:00:01.2]} 45. Re6+ {[%clk 0:00:23.4]} 1-0

[Event "Early-Titled-Tuesday-Blitz-March-12-2024"]
[Site "Chess.com"]
[Date "2024.03.12"]
[Round "2"]
[White "WilsonPalencia21"]
[Black "alexrustemov"]
[Result "0-1"]
[WhiteElo "2575"]
[BlackElo "2865"]
[TimeControl "180+1"]
[EndTime "8:17:51 PDT"]
[Termination "alexrustemov won on time"]

1. d4 {[%clk 0:03:00.9]} 1... g6 {[%clk 0:02:59.7]} 2. Nf3 {[%clk 0:03:00.9]}
2... Bg7 {[%clk 0:02:59.2]} 3. g3 {[%clk 0:03:01.1]} 3... c5 {[%clk 0:02:57]} 4.
d5 {[%clk 0:03:00.9]} 4... b5 {[%clk 0:02:54.3]} 5. Bg2 {[%clk 0:03:00.4]} 5...
d6 {[%clk 0:02:54.8]} 6. O-O {[%clk 0:03:00.4]} 6... Nd7 {[%clk 0:02:55.2]} 7.
a4 {[%clk 0:03:00]} 7... b4 {[%clk 0:02:53.7]} 8. c4 {[%clk 0:03:00.1]} 8...
bxc3 {[%clk 0:02:52.6]} 9. Nxc3 {[%clk 0:02:58.8]} 9... Ngf6 {[%clk 0:02:53]}
10. e4 {[%clk 0:02:58.2]} 10... O-O {[%clk 0:02:53.1]} 11. h3 {[%clk 0:02:57.2]}
11... Rb8 {[%clk 0:02:17.6]} 12. Ra3 {[%clk 0:02:48.7]} 12... Ba6 {[%clk
0:02:15.3]} 13. Re1 {[%clk 0:02:48.3]} 13... Rb4 {[%clk 0:02:13.7]} 14. Qc2
{[%clk 0:02:46.5]} 14... Qb6 {[%clk 0:02:08.6]} 15. a5 {[%clk 0:02:21.8]} 15...
Qc7 {[%clk 0:02:05.8]} 16. Bd2 {[%clk 0:02:08]} 16... Rfb8 {[%clk 0:02:02.5]}
17. b3 {[%clk 0:02:07.1]} 17... Ne8 {[%clk 0:01:53.4]} 18. Na4 {[%clk
0:02:04.3]} 18... R4b7 {[%clk 0:01:51.1]} 19. Bf1 {[%clk 0:01:51]} 19... Bxf1
{[%clk 0:01:50.1]} 20. Kxf1 {[%clk 0:01:51.2]} 20... Ne5 {[%clk 0:01:46.5]} 21.
Nxe5 {[%clk 0:01:48.3]} 21... Bxe5 {[%clk 0:01:47.4]} 22. Kg2 {[%clk 0:01:47.2]}
22... Nf6 {[%clk 0:01:42.7]} 23. Qc4 {[%clk 0:01:32.4]} 23... Bd4 {[%clk
0:01:38]} 24. f4 {[%clk 0:01:20]} 24... Nd7 {[%clk 0:01:28.2]} 25. Rc1 {[%clk
0:01:19]} 25... Qd8 {[%clk 0:01:25.8]} 26. Re1 {[%clk 0:01:10.6]} 26... Rb5
{[%clk 0:01:23.9]} 27. Qc2 {[%clk 0:00:59]} 27... Qc8 {[%clk 0:01:20.1]} 28. Nc3
{[%clk 0:00:54.8]} 28... Bxc3 {[%clk 0:01:12.4]} 29. Bxc3 {[%clk 0:00:53.8]}
29... Qb7 {[%clk 0:01:12.9]} 30. Rb1 {[%clk 0:00:48.2]} 30... f5 {[%clk
0:01:03.5]} 31. Ba1 {[%clk 0:00:44.1]} 31... Nf6 {[%clk 0:01:02.5]} 32. Bxf6
{[%clk 0:00:42]} 32... exf6 {[%clk 0:01:02.3]} 33. a6 {[%clk 0:00:38]} 33... Qf7
{[%clk 0:01:00.2]} 34. exf5 {[%clk 0:00:26.9]} 34... Qxd5+ {[%clk 0:00:59.7]}
35. Kh2 {[%clk 0:00:24.2]} 35... Qxf5 {[%clk 0:00:59.5]} 36. Qxf5 {[%clk
0:00:23]} 36... gxf5 {[%clk 0:01:00.4]} 37. Rd1 {[%clk 0:00:23.2]} 37... R8b6
{[%clk 0:00:58.3]} 38. Ra2 {[%clk 0:00:17.7]} 38... Rxb3 {[%clk 0:00:56.2]} 39.
Kg1 {[%clk 0:00:17.7]} 39... Rb1 {[%clk 0:00:49.8]} 40. Rd2 {[%clk 0:00:17.2]}
40... Rxd1+ {[%clk 0:00:49.1]} 41. Rxd1 {[%clk 0:00:17.3]} 41... Kf7 {[%clk
0:00:48.2]} 42. Ra1 {[%clk 0:00:16.5]} 42... Ke6 {[%clk 0:00:45.5]} 43. Kf2
{[%clk 0:00:17.4]} 43... d5 {[%clk 0:00:45.2]} 44. Ke3 {[%clk 0:00:16.5]} 44...
d4+ {[%clk 0:00:45.4]} 45. Kd3 {[%clk 0:00:16.8]} 45... Kd5 {[%clk 0:00:45.6]}
46. Ra5 {[%clk 0:00:17.5]} 46... Rb3+ {[%clk 0:00:45.1]} 47. Kc2 {[%clk
0:00:18]} 47... Rxg3 {[%clk 0:00:38.2]} 48. Rb5 {[%clk 0:00:16.7]} 48... Ra3
{[%clk 0:00:37.1]} 0-1

[Event "Early-Titled-Tuesday-Blitz-March-12-2024"]
[Site "Chess.com"]
[Date "2024.03.12"]
[Round "2"]
[White "Statham_01"]
[Black "MightyMike_009"]
[Result "0-1"]
[WhiteElo "2583"]
[BlackElo "2865"]
[TimeControl "180+1"]
[EndTime "8:17:53 PDT"]
[Termination "MightyMike_009 won on time"]

1. e4 {[%clk 0:02:59.7]} 1... e5 {[%clk 0:02:59.4]} 2. Nf3 {[%clk 0:02:59.7]}
2... Nc6 {[%clk 0:02:59.9]} 3. c3 {[%clk 0:02:59.9]} 3... Nf6 {[%clk 0:02:48.2]}
4. d4 {[%clk 0:02:59.4]} 4... d6 {[%clk 0:02:35.7]} 5. Bb5 {[%clk 0:02:54.7]}
5... Bd7 {[%clk 0:02:31]} 6. Bg5 {[%clk 0:02:43.8]} 6... h6 {[%clk 0:02:27.7]}
7. Bh4 {[%clk 0:02:24.8]} 7... g5 {[%clk 0:01:55.8]} 8. Bg3 {[%clk 0:02:23.8]}
8... Nxe4 {[%clk 0:01:56]} 9. Bxc6 {[%clk 0:02:03.4]} 9... Bxc6 {[%clk
0:01:56.9]} 10. dxe5 {[%clk 0:02:03.2]} 10... Nxg3 {[%clk 0:01:52.7]} 11. hxg3
{[%clk 0:02:04.1]} 11... dxe5 {[%clk 0:01:52.8]} 12. Qe2 {[%clk 0:01:46.6]}
12... Qe7 {[%clk 0:01:50.4]} 13. O-O {[%clk 0:01:29.2]} 13... Bg7 {[%clk
0:01:38.9]} 14. Re1 {[%clk 0:01:26.2]} 14... O-O-O {[%clk 0:01:14.6]} 15. Nbd2
{[%clk 0:00:59.9]} 15... Rhe8 {[%clk 0:01:05.8]} 16. b4 {[%clk 0:00:55.8]} 16...
e4 {[%clk 0:01:00.1]} 17. Nd4 {[%clk 0:00:52.5]} 17... Bxd4 {[%clk 0:00:52.1]}
18. cxd4 {[%clk 0:00:53.4]} 18... Qxb4 {[%clk 0:00:51.5]} 19. Nb3 {[%clk
0:00:48.3]} 19... f5 {[%clk 0:00:47.3]} 20. Rab1 {[%clk 0:00:46.9]} 20... Qb5
{[%clk 0:00:33.5]} 21. Qc2 {[%clk 0:00:42.7]} 21... Qd3 {[%clk 0:00:33.3]} 22.
Qc5 {[%clk 0:00:42.1]} 22... e3 {[%clk 0:00:12.1]} 23. fxe3 {[%clk 0:00:35]}
23... Rxe3 {[%clk 0:00:13]} 24. Na5 {[%clk 0:00:22.2]} 24... Rxe1+ {[%clk
0:00:12]} 25. Rxe1 {[%clk 0:00:23.1]} 25... Qxg3 {[%clk 0:00:11.2]} 26. Qxf5+
{[%clk 0:00:17.7]} 26... Bd7 {[%clk 0:00:09.7]} 27. Qe4 {[%clk 0:00:18.1]} 27...
c6 {[%clk 0:00:08.8]} 28. Rb1 {[%clk 0:00:12.1]} 28... Re8 {[%clk 0:00:07.8]}
29. Qc2 {[%clk 0:00:08.6]} 29... Qe3+ {[%clk 0:00:08.1]} 30. Kh1 {[%clk
0:00:09]} 30... Re4 {[%clk 0:00:08.8]} 31. Qxe4 {[%clk 0:00:03.6]} 31... Qxe4
{[%clk 0:00:09.7]} 32. Rxb7 {[%clk 0:00:04]} 32... Qe1+ {[%clk 0:00:09.1]} 33.
Kh2 {[%clk 0:00:04]} 33... Qh4+ {[%clk 0:00:09.6]} 34. Kg1 {[%clk 0:00:04]}
34... Qxd4+ {[%clk 0:00:10.3]} 35. Kh2 {[%clk 0:00:03.9]} 35... Qh4+ {[%clk
0:00:10.5]} 36. Kg1 {[%clk 0:00:04]} 36... Qe1+ {[%clk 0:00:11.4]} 37. Kh2
{[%clk 0:00:04.4]} 37... Qxa5 {[%clk 0:00:12.3]} 0-1

[Event "Early-Titled-Tuesday-Blitz-March-12-2024"]
[Site "Chess.com"]
[Date "2024.03.12"]
[Round "2"]
[White "willcab71"]
[Black "FrankieJay"]
[Result "0-1"]
[WhiteElo "2132"]
[BlackElo "2493"]
[TimeControl "180+1"]
[EndTime "8:17:54 PDT"]
[Termination "FrankieJay won on time"]

1. Nf3 {[%clk 0:03:00.9]} 1... Nf6 {[%clk 0:02:58.9]} 2. g3 {[%clk 0:02:59.9]}
2... g6 {[%clk 0:02:59.2]} 3. Bg2 {[%clk 0:02:59.8]} 3... Bg7 {[%clk 0:02:59.8]}
4. O-O {[%clk 0:03:00.3]} 4... O-O {[%clk 0:03:00.2]} 5. b3 {[%clk 0:03:00.2]}
5... d5 {[%clk 0:03:00.1]} 6. Bb2 {[%clk 0:03:00]} 6... c5 {[%clk 0:03:00.6]} 7.
d3 {[%clk 0:03:00.3]} 7... Nc6 {[%clk 0:03:00.6]} 8. Nbd2 {[%clk 0:03:00.1]}
8... Re8 {[%clk 0:02:54.2]} 9. e4 {[%clk 0:02:59.9]} 9... e5 {[%clk 0:02:44.4]}
10. Re1 {[%clk 0:02:59.4]} 10... d4 {[%clk 0:02:43.2]} 11. a4 {[%clk 0:02:58.1]}
11... b6 {[%clk 0:02:40.6]} 12. Nc4 {[%clk 0:02:58]} 12... Qc7 {[%clk
0:02:19.7]} 13. Bc1 {[%clk 0:02:57.4]} 13... h6 {[%clk 0:02:13.7]} 14. h3 {[%clk
0:02:52.9]} 14... Kh7 {[%clk 0:02:12.9]} 15. Kh2 {[%clk 0:02:48.4]} 15... Be6
{[%clk 0:02:13.2]} 16. Nh4 {[%clk 0:02:16.7]} 16... Nd7 {[%clk 0:02:05.6]} 17.
f4 {[%clk 0:02:13.6]} 17... exf4 {[%clk 0:02:06]} 18. Bxf4 {[%clk 0:01:56.8]}
18... Nde5 {[%clk 0:02:06.3]} 19. Nxe5 {[%clk 0:01:51.1]} 19... Bxe5 {[%clk
0:01:49.1]} 20. Qd2 {[%clk 0:01:35.1]} 20... g5 {[%clk 0:01:32.1]} 21. Bxe5
{[%clk 0:01:34.4]} 21... Nxe5 {[%clk 0:01:33]} 22. Nf3 {[%clk 0:01:20.3]} 22...
Rg8 {[%clk 0:01:33]} 23. Nxe5 {[%clk 0:01:18.4]} 23... Qxe5 {[%clk 0:01:33.9]}
24. Rf1 {[%clk 0:01:18.5]} 24... h5 {[%clk 0:01:27.8]} 25. Rf3 {[%clk
0:00:25.8]} 25... Rg6 {[%clk 0:01:15.9]} 26. Kg1 {[%clk 0:00:19.4]} 26... Rag8
{[%clk 0:00:53.6]} 27. Raf1 {[%clk 0:00:18.9]} 27... R8g7 {[%clk 0:00:53.6]} 28.
Qf2 {[%clk 0:00:15.5]} 28... g4 {[%clk 0:00:45.3]} 29. hxg4 {[%clk 0:00:15]}
29... hxg4 {[%clk 0:00:46.1]} 30. Rf4 {[%clk 0:00:14.9]} 30... Rh6 {[%clk
0:00:42.7]} 31. Re1 {[%clk 0:00:14.4]} 31... Qh5 {[%clk 0:00:38.7]} 32. Kf1
{[%clk 0:00:14.5]} 32... Qe5 {[%clk 0:00:32.6]} 33. Ke2 {[%clk 0:00:14.6]} 33...
Kg8 {[%clk 0:00:30.4]} 34. Rh1 {[%clk 0:00:14.4]} 34... Rgh7 {[%clk 0:00:29.3]}
35. Rxh6 {[%clk 0:00:14]} 35... Rxh6 {[%clk 0:00:30.2]} 36. Bf1 {[%clk
0:00:11.5]} 36... a6 {[%clk 0:00:29.1]} 37. Kd2 {[%clk 0:00:11]} 37... b5 {[%clk
0:00:29]} 38. axb5 {[%clk 0:00:10.7]} 38... axb5 {[%clk 0:00:29.9]} 39. Be2
{[%clk 0:00:11.1]} 39... c4 {[%clk 0:00:19.5]} 40. Bxg4 {[%clk 0:00:09.3]} 40...
cxb3 {[%clk 0:00:08.1]} 41. Bxe6 {[%clk 0:00:05.6]} 41... Qxe6 {[%clk 0:00:09]}
0-1

[Event "Early-Titled-Tuesday-Blitz-March-12-2024"]
[Site "Chess.com"]
[Date "2024.03.12"]
[Round "2"]
[White "MatthewG-p4p"]
[Black "Superfelix"]
[Result "0-1"]
[WhiteElo "2868"]
[BlackElo "2612"]
[TimeControl "180+1"]
[EndTime "8:17:55 PDT"]
[Termination "Superfelix won by resignation"]

1. e4 {[%clk 0:02:55.9]} 1... c6 {[%clk 0:02:58.8]} 2. d4 {[%clk 0:02:54.9]}
2... g6 {[%clk 0:02:59.3]} 3. Nc3 {[%clk 0:02:46]} 3... d5 {[%clk 0:03:00.2]} 4.
Nf3 {[%clk 0:02:43.3]} 4... dxe4 {[%clk 0:02:51.7]} 5. Nxe4 {[%clk 0:02:44.2]}
5... Nf6 {[%clk 0:02:52.1]} 6. Bd3 {[%clk 0:02:43.5]} 6... Bg7 {[%clk
0:02:43.3]} 7. O-O {[%clk 0:02:43.1]} 7... O-O {[%clk 0:02:42.6]} 8. Re1 {[%clk
0:02:43.5]} 8... Nbd7 {[%clk 0:02:41.5]} 9. c3 {[%clk 0:02:39]} 9... Qc7 {[%clk
0:02:35.9]} 10. Bg5 {[%clk 0:02:26.2]} 10... h6 {[%clk 0:02:30.9]} 11. Bh4
{[%clk 0:02:23.7]} 11... Nxe4 {[%clk 0:02:27.4]} 12. Bxe4 {[%clk 0:02:23.4]}
12... Nf6 {[%clk 0:02:27]} 13. Bc2 {[%clk 0:02:18.5]} 13... Bg4 {[%clk
0:02:18.5]} 14. h3 {[%clk 0:02:18.7]} 14... Bxf3 {[%clk 0:02:17.4]} 15. Qxf3
{[%clk 0:02:19.6]} 15... Rae8 {[%clk 0:02:16.9]} 16. Bb3 {[%clk 0:02:14.9]}
16... Kh7 {[%clk 0:02:14.5]} 17. Re2 {[%clk 0:02:13.4]} 17... Ng8 {[%clk
0:01:55.3]} 18. Bxf7 {[%clk 0:01:28.5]} 18... e5 {[%clk 0:01:51.3]} 19. Bxg6+
{[%clk 0:01:00.1]} 19... Kxg6 {[%clk 0:01:50.3]} 20. Qe4+ {[%clk 0:01:00.7]}
20... Kf7 {[%clk 0:01:48.1]} 21. Qf5+ {[%clk 0:00:59.5]} 21... Nf6 {[%clk
0:01:42]} 22. dxe5 {[%clk 0:00:57.8]} 22... Kg8 {[%clk 0:01:41.3]} 23. exf6
{[%clk 0:00:22.2]} 23... Rxe2 {[%clk 0:01:34.2]} 24. Qg4 {[%clk 0:00:20.6]}
24... Rfe8 {[%clk 0:01:28.9]} 25. f3 {[%clk 0:00:15.3]} 25... Rxb2 {[%clk
0:01:15.8]} 26. Bg3 {[%clk 0:00:09]} 26... Qf7 {[%clk 0:01:08.6]} 27. fxg7
{[%clk 0:00:09.5]} 27... Ree2 {[%clk 0:01:07.1]} 28. Kh1 {[%clk 0:00:07.6]}
28... Rxg2 {[%clk 0:01:06.1]} 29. Re1 {[%clk 0:00:06.9]} 29... Rge2 {[%clk
0:01:01.2]} 30. Rd1 {[%clk 0:00:06.6]} 30... Rbd2 {[%clk 0:01:00.3]} 31. Rg1
{[%clk 0:00:05.8]} 31... Rd3 {[%clk 0:00:46.5]} 32. Bf4 {[%clk 0:00:05.2]} 32...
Re6 {[%clk 0:00:35.2]} 33. Qh4 {[%clk 0:00:03.3]} 33... Rg6 {[%clk 0:00:28.8]}
34. Re1 {[%clk 0:00:03.2]} 34... Rxg7 {[%clk 0:00:27]} 35. Qxh6 {[%clk
0:00:03.1]} 35... Rxf3 {[%clk 0:00:24.2]} 36. Re4 {[%clk 0:00:01.5]} 36... Rf1+
{[%clk 0:00:23]} 37. Kh2 {[%clk 0:00:02.2]} 37... Qxa2+ {[%clk 0:00:21.5]} 38.
Bd2 {[%clk 0:00:02.5]} 38... Rf2+ {[%clk 0:00:20.8]} 39. Kh1 {[%clk 0:00:02.9]}
39... Qd5 {[%clk 0:00:14.1]} 40. Qh4 {[%clk 0:00:02.5]} 40... Rxd2 {[%clk
0:00:13.7]} 41. c4 {[%clk 0:00:02.6]} 41... Rd1+ {[%clk 0:00:12.3]} 42. Kh2
{[%clk 0:00:02.8]} 42... Qd2+ {[%clk 0:00:13]} 0-1

[Event "Early-Titled-Tuesday-Blitz-March-12-2024"]
[Site "Chess.com"]
[Date "2024.03.12"]
[Round "2"]
[White "Road2GM3000"]
[Black "Egor_Koshulyan"]
[Result "1/2-1/2"]
[WhiteElo "2490"]
[BlackElo "2774"]
[TimeControl "180+1"]
[EndTime "8:17:55 PDT"]
[Termination "Game drawn by repetition"]

1. d4 {[%clk 0:03:00.9]} 1... Nf6 {[%clk 0:02:59.8]} 2. c4 {[%clk 0:03:01.3]}
2... e5 {[%clk 0:02:53.9]} 3. dxe5 {[%clk 0:02:57.6]} 3... Ng4 {[%clk
0:02:54.3]} 4. Bf4 {[%clk 0:02:55.9]} 4... Bb4+ {[%clk 0:02:54.2]} 5. Nc3 {[%clk
0:02:55.4]} 5... Nc6 {[%clk 0:02:54.7]} 6. Nf3 {[%clk 0:02:54.6]} 6... Qe7
{[%clk 0:02:54.3]} 7. Qd5 {[%clk 0:02:54.9]} 7... Bxc3+ {[%clk 0:02:51.7]} 8.
bxc3 {[%clk 0:02:55.8]} 8... f6 {[%clk 0:02:52.2]} 9. exf6 {[%clk 0:02:55.6]}
9... Nxf6 {[%clk 0:02:53.1]} 10. Qd1 {[%clk 0:02:55.8]} 10... d6 {[%clk
0:02:49.6]} 11. e3 {[%clk 0:02:55.4]} 11... O-O {[%clk 0:02:50.2]} 12. Be2
{[%clk 0:02:54.8]} 12... Ne4 {[%clk 0:02:50.8]} 13. Qc2 {[%clk 0:02:46.7]} 13...
Bf5 {[%clk 0:02:50.5]} 14. Qc1 {[%clk 0:02:41.4]} 14... Nc5 {[%clk 0:02:44.4]}
15. O-O {[%clk 0:02:37.5]} 15... Bd3 {[%clk 0:02:44.6]} 16. Bxd3 {[%clk
0:02:19.1]} 16... Nxd3 {[%clk 0:02:45.5]} 17. Qd2 {[%clk 0:02:19.5]} 17... Nxf4
{[%clk 0:02:44.9]} 18. exf4 {[%clk 0:02:18.9]} 18... Qf6 {[%clk 0:02:40.5]} 19.
Rab1 {[%clk 0:02:15.4]} 19... Rab8 {[%clk 0:02:38.3]} 20. g3 {[%clk 0:02:10.9]}
20... Ne7 {[%clk 0:02:38.3]} 21. Rfe1 {[%clk 0:02:07.6]} 21... Kh8 {[%clk
0:02:36]} 22. Nd4 {[%clk 0:02:05.7]} 22... Nf5 {[%clk 0:02:28]} 23. Nxf5 {[%clk
0:02:01.2]} 23... Qxf5 {[%clk 0:02:28.4]} 24. Rbd1 {[%clk 0:01:53.9]} 24... h6
{[%clk 0:02:24.4]} 25. Re3 {[%clk 0:01:50.6]} 25... Rbe8 {[%clk 0:02:12.8]} 26.
Rde1 {[%clk 0:01:50]} 26... Qf7 {[%clk 0:02:09.3]} 27. Qd5 {[%clk 0:01:45.9]}
27... Rxe3 {[%clk 0:01:52.3]} 28. Rxe3 {[%clk 0:01:44.5]} 28... c6 {[%clk
0:01:16.7]} 29. Qxd6 {[%clk 0:01:36.1]} 29... Rg8 {[%clk 0:01:16.7]} 30. Qe6
{[%clk 0:01:22.9]} 30... Qc7 {[%clk 0:01:14.2]} 31. c5 {[%clk 0:01:00.7]} 31...
Qa5 {[%clk 0:01:14.3]} 32. Qf7 {[%clk 0:00:58.4]} 32... Qxc5 {[%clk 0:00:55.7]}
33. Qxb7 {[%clk 0:00:55.6]} 33... Rd8 {[%clk 0:00:56.3]} 34. Qe7 {[%clk
0:00:49.5]} 34... Rd1+ {[%clk 0:00:46.6]} 35. Kg2 {[%clk 0:00:49.6]} 35... Qb5
{[%clk 0:00:34.3]} 36. Qe8+ {[%clk 0:00:46.7]} 36... Kh7 {[%clk 0:00:34.7]} 37.
Qe4+ {[%clk 0:00:46.7]} 37... Kh8 {[%clk 0:00:34.6]} 38. Qg6 {[%clk 0:00:22.3]}
38... Qf1+ {[%clk 0:00:34.5]} 39. Kf3 {[%clk 0:00:21.8]} 39... Qh1+ {[%clk
0:00:35.2]} 40. Kg4 {[%clk 0:00:20.3]} 40... Rd8 {[%clk 0:00:34.8]} 41. Re8+
{[%clk 0:00:15.3]} 41... Rxe8 {[%clk 0:00:35.3]} 42. Qxe8+ {[%clk 0:00:16]}
42... Kh7 {[%clk 0:00:36]} 43. f5 {[%clk 0:00:13.2]} 43... Qxh2 {[%clk
0:00:14.1]} 44. Qg6+ {[%clk 0:00:10.5]} 44... Kh8 {[%clk 0:00:14.8]} 45. Qe8+
{[%clk 0:00:10.5]} 45... Kh7 {[%clk 0:00:15]} 46. Qg6+ {[%clk 0:00:03.2]} 46...
Kh8 {[%clk 0:00:15.6]} 47. Qe8+ {[%clk 0:00:03.1]} 47... Kh7 {[%clk 0:00:16]}
1/2-1/2

[Event "Early-Titled-Tuesday-Blitz-March-12-2024"]
[Site "Chess.com"]
[Date "2024.03.12"]
[Round "2"]
[White "Roman_Ovetchkin"]
[Black "Grandelicious"]
[Result "0-1"]
[WhiteElo "2595"]
[BlackElo "2883"]
[TimeControl "180+1"]
[EndTime "8:18:01 PDT"]
[Termination "Grandelicious won on time"]

1. d4 {[%clk 0:03:00.9]} 1... Nf6 {[%clk 0:02:57]} 2. c4 {[%clk 0:03:00.3]} 2...
g6 {[%clk 0:02:56.5]} 3. Nc3 {[%clk 0:02:59.7]} 3... Bg7 {[%clk 0:02:56.8]} 4.
e4 {[%clk 0:02:59.3]} 4... d6 {[%clk 0:02:57.5]} 5. h3 {[%clk 0:02:57.2]} 5...
e5 {[%clk 0:02:55.5]} 6. d5 {[%clk 0:02:55.7]} 6... Nbd7 {[%clk 0:02:52.7]} 7.
Bd3 {[%clk 0:02:45.2]} 7... h5 {[%clk 0:02:51.6]} 8. Nf3 {[%clk 0:02:40.2]} 8...
Bh6 {[%clk 0:02:50.4]} 9. Bxh6 {[%clk 0:02:37.1]} 9... Rxh6 {[%clk 0:02:50.5]}
10. Qd2 {[%clk 0:02:36.8]} 10... Rh8 {[%clk 0:02:50]} 11. O-O {[%clk 0:02:32.8]}
11... h4 {[%clk 0:02:49.1]} 12. b4 {[%clk 0:02:25.3]} 12... Nh5 {[%clk
0:02:48.3]} 13. Ne2 {[%clk 0:02:24.9]} 13... a5 {[%clk 0:02:39.6]} 14. a3 {[%clk
0:02:23.1]} 14... Qf6 {[%clk 0:02:37.2]} 15. Qe3 {[%clk 0:02:09.2]} 15... Nf4
{[%clk 0:02:14.8]} 16. Nxf4 {[%clk 0:01:38]} 16... exf4 {[%clk 0:02:15.7]} 17.
Qd4 {[%clk 0:01:37.8]} 17... Qxd4 {[%clk 0:02:12.7]} 18. Nxd4 {[%clk 0:01:37.5]}
18... Ne5 {[%clk 0:02:13.6]} 19. Be2 {[%clk 0:01:37.7]} 19... Bd7 {[%clk
0:02:07.5]} 20. c5 {[%clk 0:01:33.7]} 20... Ke7 {[%clk 0:02:00.8]} 21. Rfc1
{[%clk 0:01:31.9]} 21... axb4 {[%clk 0:01:52.2]} 22. axb4 {[%clk 0:01:31.2]}
22... g5 {[%clk 0:01:38]} 23. f3 {[%clk 0:01:24.4]} 23... c6 {[%clk 0:01:22.8]}
24. Kf2 {[%clk 0:01:10.2]} 24... Rhc8 {[%clk 0:01:22.2]} 25. dxc6 {[%clk
0:00:56.8]} 25... bxc6 {[%clk 0:01:17.8]} 26. cxd6+ {[%clk 0:00:42.4]} 26...
Kxd6 {[%clk 0:01:17.9]} 27. Rd1 {[%clk 0:00:41.8]} 27... Rxa1 {[%clk 0:01:06.8]}
28. Rxa1 {[%clk 0:00:38.1]} 28... Rb8 {[%clk 0:01:06.8]} 29. Nc2 {[%clk
0:00:30.5]} 29... Be6 {[%clk 0:01:03.3]} 30. Ra3 {[%clk 0:00:24.8]} 30... Kc7
{[%clk 0:00:56.4]} 31. Ke1 {[%clk 0:00:24.2]} 31... Kb6 {[%clk 0:00:52.2]} 32.
Kd2 {[%clk 0:00:23.6]} 32... Bc4 {[%clk 0:00:51.1]} 33. Rc3 {[%clk 0:00:17.5]}
33... Rd8+ {[%clk 0:00:50.1]} 34. Ke1 {[%clk 0:00:17]} 34... Be6 {[%clk
0:00:34.2]} 35. Rc5 {[%clk 0:00:11.5]} 35... f6 {[%clk 0:00:32.8]} 36. Rc3
{[%clk 0:00:07.8]} 36... Rd7 {[%clk 0:00:29]} 37. Ra3 {[%clk 0:00:06.8]} 37...
Bc4 {[%clk 0:00:28.6]} 38. Rc3 {[%clk 0:00:06.6]} 38... Bb5 {[%clk 0:00:25.8]}
39. Ra3 {[%clk 0:00:05]} 39... Bd3 {[%clk 0:00:16.1]} 40. Rc3 {[%clk 0:00:03.3]}
40... Bxc2 {[%clk 0:00:15.8]} 41. Rxc2 {[%clk 0:00:04.2]} 41... Ra7 {[%clk
0:00:15.3]} 42. Kd2 {[%clk 0:00:03.1]} 42... Ra1 {[%clk 0:00:15.2]} 43. Bd1
{[%clk 0:00:02.7]} 43... Ra4 {[%clk 0:00:12.7]} 44. Kc3 {[%clk 0:00:01.3]} 44...
Ra3+ {[%clk 0:00:12.6]} 0-1